bitfinex-derivatives/quotes_BTCF0:USTF0_20240923
["timestamp","ask_amount","ask_price","bid_price","bid_amount"]
[1727052840143,0.078428,63749.0,63748.0,0.001]
[1727052840442,0.017,63751.0,63724.0,0.01825353]
[1727052840443,0.078434,63745.0,63732.0,0.19]
[1727052840763,0.03582189,63751.0,63744.0,0.078434]
[1727052841041,0.017,63751.0,63744.0,0.078434]
[1727052841240,0.078431,63747.0,63744.0,0.078434]
[1727052842036,0.017,63750.0,63749.0,0.078428]
[1727052842345,0.017,63750.0,63749.0,0.629228]
[1727052842640,0.006,63750.0,63749.0,0.65266812]
[1727052843236,0.006,63750.0,63749.0,0.46266812]
[1727052843539,0.00235399,63756.0,63749.0,0.38424012]
[1727052843736,0.00235399,63756.0,63755.0,0.02344012]
[1727052843938,0.00235399,63756.0,63755.0,0.10186112]
[1727052844634,0.00235399,63756.0,63755.0,0.078421]
[1727052844841,0.078423,63753.0,63739.0,0.19]
[1727052845139,1.07291399,63756.0,63747.0,0.10187112]
[1727052845140,0.078425,63752.0,63747.0,0.10187112]
[1727052845443,0.56715399,63756.0,63746.0,0.078431]
[1727052845645,0.56715399,63756.0,63742.0,0.46267712]
[1727052845646,0.078433,63746.0,63742.0,0.46267712]
[1727052845836,0.078433,63746.0,63744.0,0.078434]
[1727052846145,0.1023,63749.0,63744.0,0.078434]
[1727052846341,0.1023,63749.0,63742.0,0.3608]
[1727052846643,0.1023,63749.0,63732.0,0.01819665]
[1727052846644,0.078453,63729.0,63722.0,0.078461]
[1727052846835,0.078453,63729.0,63713.0,0.06149466]
[1727052846836,0.3608,63729.0,63713.0,0.06149466]
[1727052847138,0.3608,63729.0,63724.0,0.02344012]
[1727052847341,0.3608,63729.0,63722.0,0.19]
[1727052847542,0.3608,63729.0,63709.0,0.0042]
[1727052847543,0.3608,63739.0,63728.0,0.10189312]
[1727052847749,0.078446,63735.0,63733.0,0.02344012]
[1727052848139,0.72248,63739.0,63733.0,0.02344012]
[1727052848335,0.7216,63739.0,63733.0,0.02344012]
[1727052848633,0.7216,63739.0,63727.0,0.19]
[1727052848634,0.7216,63739.0,63736.0,0.02344012]
[1727052848834,0.7226,63739.0,63738.0,0.02344012]
[1727052849242,0.3618,63739.0,63738.0,0.02344012]
[1727052849641,0.3628,63739.0,63738.0,0.02344012]
[1727052850454,0.3618,63739.0,63738.0,0.02344012]
[1727052850752,0.3608,63748.0,63747.0,0.078431]
[1727052851047,0.3608,63748.0,63747.0,0.10187112]
[1727052851436,0.3608,63748.0,63747.0,0.02344012]
[1727052851844,0.439229,63748.0,63747.0,0.02344012]
[1727052852062,0.439229,63748.0,63742.0,0.078436]
[1727052852347,0.449229,63748.0,63746.0,0.02344012]
[1727052852846,0.454229,63748.0,63746.0,0.02344012]
[1727052853151,0.454229,63748.0,63747.0,0.02344012]
[1727052853843,0.453229,63748.0,63747.0,0.02344012]
[1727052854546,0.445229,63748.0,63747.0,0.02344012]
[1727052855044,0.453229,63748.0,63747.0,0.02444012]
[1727052855250,0.454229,63748.0,63747.0,0.02444012]
[1727052855455,0.454229,63748.0,63747.0,0.001]
[1727052855951,0.54227375,63748.0,63747.0,0.001]
[1727052856246,0.078434,63745.0,63728.0,0.5508]
[1727052856447,0.3608,63738.0,63728.0,0.5508]
[1727052856634,0.3608,63738.0,63737.0,0.078443]
[1727052856839,0.3608,63738.0,63737.0,0.10188312]
[1727052858536,0.3618,63738.0,63737.0,0.10188312]
[1727052859054,0.09304475,63753.0,63737.0,0.3618]
[1727052859349,0.45384475,63759.0,63748.0,0.078429]
[1727052859569,0.3608,63759.0,63755.0,0.07842]
[1727052859847,0.078417,63758.0,63755.0,0.07842]
[1727052860049,0.3608,63759.0,63747.0,0.19]
[1727052860355,0.3608,63759.0,63756.0,0.078419]
[1727052860549,0.3608,63759.0,63755.0,0.07842]
[1727052860741,0.078417,63758.0,63755.0,0.07842]
[1727052860942,0.078417,63758.0,63756.0,0.078419]
[1727052861153,0.001,63753.0,63752.0,0.06149466]
[1727052861354,0.5528,63753.0,63749.0,0.078428]
[1727052861648,0.3608,63751.0,63745.0,0.078433]
[1727052862037,0.078429,63749.0,63745.0,0.078433]
[1727052862442,0.3608,63751.0,63743.0,0.06149466]
[1727052862648,0.3608,63751.0,63744.0,0.06149466]
[1727052862851,0.3618,63751.0,63745.0,0.06349466]
[1727052863048,0.3618,63751.0,63745.0,0.06449466]
[1727052863346,0.3618,63751.0,63748.0,0.06149466]
[1727052863548,0.3618,63751.0,63745.0,0.003]
[1727052863549,0.3618,63751.0,63749.0,0.06149466]
[1727052863852,0.3618,63751.0,63745.0,0.07989918]
[1727052863853,0.3618,63751.0,63750.0,0.06149466]
[1727052864055,0.078432,63746.0,63745.0,0.003]
[1727052864257,0.268432,63746.0,63745.0,0.003]
[1727052864439,0.268432,63746.0,63745.0,0.002]
[1727052865052,0.19,63746.0,63738.0,0.078442]
[1727052865255,0.3608,63740.0,63738.0,0.078442]
[1727052866054,0.3608,63742.0,63732.0,0.07689918]
[1727052866951,0.3608,63742.0,63741.0,0.078438]
[1727052867152,0.3608,63742.0,63733.0,0.62769918]
[1727052867153,0.001,63746.0,63745.0,0.078433]
[1727052868050,0.3608,63751.0,63747.0,0.07843]
[1727052868747,0.03230728,63750.0,63747.0,0.07843]
[1727052868951,0.078429,63748.0,63733.0,0.5508]
[1727052869140,0.09385972,63742.0,63733.0,0.5508]
[1727052869347,0.09385972,63742.0,63741.0,0.078438]
[1727052870851,0.3608,63745.0,63741.0,0.078438]
[1727052871048,0.03221835,63744.0,63741.0,0.078438]
[1727052871243,0.37974088,63745.0,63741.0,0.078438]
[1727052871449,0.003,63742.0,63741.0,0.078438]
[1727052872059,0.38274088,63745.0,63741.0,0.078438]
[1727052872350,0.078437,63742.0,63733.0,0.3608]
[1727052872554,0.09387112,63740.0,63733.0,0.3608]
[1727052872740,0.09387112,63740.0,63728.0,0.19]
[1727052873549,0.09387112,63739.0,63730.0,0.3608]
[1727052873860,0.09387112,63740.0,63739.0,0.07844]
[1727052874544,0.09389275,63740.0,63739.0,0.07844]
[1727052874861,0.09489275,63740.0,63739.0,0.07844]
[1727052875152,0.001,63740.0,63739.0,0.07844]
[1727052875353,0.09489784,63740.0,63739.0,0.07844]
[1727052875553,0.001,63740.0,63739.0,0.08044]
[1727052875749,0.37974088,63745.0,63741.0,0.078438]
[1727052876071,0.00235444,63759.0,63744.0,0.19]
[1727052876072,0.3608,63759.0,63744.0,0.19]
[1727052876351,0.09389784,63772.0,63742.0,0.31329703]
[1727052876352,0.3608,63765.0,63764.0,0.07841]
[1727052876545,0.3608,63765.0,63764.0,0.26841]
[1727052876749,0.3608,63765.0,63764.0,0.07841]
[1727052877854,0.014,63765.0,63764.0,0.07941]
[1727052878347,0.028,63765.0,63764.0,0.07941]
[1727052879158,0.467208,63765.0,63764.0,0.001]
[1727052879354,1.45928,63765.0,63755.0,0.07842]
[1727052879551,0.3608,63758.0,63755.0,0.07842]
[1727052879752,0.19,63756.0,63750.0,0.078427]
[1727052880455,0.19,63751.0,63746.0,0.078432]
[1727052880947,0.078422,63754.0,63746.0,0.078432]
[1727052881143,0.078424,63753.0,63746.0,0.078432]
[1727052881343,0.19,63756.0,63745.0,0.00235286]
[1727052881344,0.3608,63752.0,63745.0,0.00235286]
[1727052881557,0.005,63756.0,63755.0,0.078421]
[1727052881743,0.09666614,63764.0,63751.0,0.19]
[1727052882071,0.09666614,63764.0,63746.0,0.0771883]
[1727052882072,0.3608,63752.0,63746.0,0.0771883]
[1727052882256,0.3608,63752.0,63744.0,0.0771883]
[1727052882558,0.3608,63752.0,63741.0,0.3608]
[1727052882559,0.19,63760.0,63743.0,0.0771883]
[1727052882757,0.3608,63755.0,63743.0,0.0771883]
[1727052882949,0.3608,63755.0,63744.0,0.0771883]
[1727052883460,0.3608,63755.0,63741.0,0.3608]
[1727052883461,0.3608,63755.0,63750.0,0.078427]
[1727052883647,0.3608,63755.0,63747.0,0.078431]
[1727052883854,0.10855221,63749.0,63740.0,0.3608]
[1727052884048,0.10855221,63745.0,63740.0,0.3608]
[1727052884251,0.1669542,63744.0,63740.0,0.3608]
[1727052884447,0.05840199,63743.0,63740.0,0.3608]
[1727052884654,0.10855221,63744.0,63742.0,0.078437]
[1727052884854,0.10855221,63745.0,63740.0,0.3608]
[1727052885160,0.48416123,63748.0,63744.0,0.078434]
[1727052885161,0.10945243,63746.0,63744.0,0.078434]
[1727052885361,0.20609816,63745.0,63740.0,0.002]
[1727052885661,0.10945243,63742.0,63740.0,0.002]
[1727052885863,0.05815315,63741.0,63740.0,0.002]
[1727052886253,0.078437,63742.0,63740.0,0.002]
[1727052886450,0.3608,63741.0,63731.0,0.07845]
[1727052886649,0.10947197,63735.0,63731.0,0.07845]
[1727052887161,0.14219375,63735.0,63731.0,0.07845]
[1727052887459,0.03272178,63734.0,63732.0,0.078448]
[1727052887662,0.03241917,63733.0,63732.0,0.078449]
[1727052889064,0.02643236,63733.0,63732.0,1.07072]
[1727052889258,0.001,63733.0,63732.0,0.078449]
[1727052889662,0.03421943,63733.0,63732.0,0.078449]
[1727052890163,0.03421943,63733.0,63732.0,0.081449]
[1727052890557,0.03421943,63733.0,63732.0,0.003]
[1727052890755,0.079448,63733.0,63732.0,0.003]
[1727052891459,0.078448,63733.0,63732.0,0.003]
[1727052891660,0.079448,63733.0,63732.0,0.003]
[1727052892563,0.079448,63733.0,63720.0,0.0771883]
[1727052892564,0.078458,63725.0,63719.0,0.078465]
[1727052892868,0.19,63721.0,63719.0,0.078465]
[1727052893069,0.19,63721.0,63713.0,0.3608]
[1727052893362,0.19,63720.0,63714.0,0.07847]
[1727052893565,0.078465,63719.0,63714.0,0.07847]
[1727052893865,0.078464,63720.0,63719.0,0.005]
[1727052894367,0.078464,63720.0,63713.0,0.3658]
[1727052894761,0.078464,63720.0,63713.0,0.444272]
[1727052895166,0.078464,63720.0,63714.0,0.078471]
[1727052895556,0.079464,63720.0,63714.0,0.082471]
[1727052896161,0.079464,63720.0,63715.0,0.07847]
[1727052896463,0.001,63720.0,63718.0,0.078466]
[1727052897266,0.001,63720.0,63703.0,0.0771883]
[1727052897267,0.002,63720.0,63713.0,0.002]
[1727052897560,0.5508,63716.0,63713.0,0.080472]
[1727052897762,0.5508,63716.0,63708.0,0.078478]
[1727052897957,0.19,63710.0,63708.0,0.078478]
[1727052898351,0.19,63710.0,63701.0,0.3608]
[1727052898352,0.3608,63709.0,63704.0,0.078483]
[1727052898565,0.3608,63713.0,63703.0,0.19]
[1727052898769,0.079464,63720.0,63703.0,0.19]
[1727052899071,0.3608,63714.0,63713.0,0.002]
[1727052900055,0.078476,63710.0,63701.0,0.3608]
[1727052900261,0.19,63709.0,63701.0,0.439287]
[1727052900571,0.19,63709.0,63704.0,0.080483]
[1727052900572,0.19,63705.0,63704.0,0.080483]
[1727052900761,0.001,63709.0,63708.0,0.078479]
[1727052901165,0.09749812,63714.0,63701.0,0.3608]
[1727052901166,0.078475,63711.0,63701.0,0.3608]
[1727052901360,0.5508,63712.0,63707.0,0.078479]
[1727052901361,0.55164,63712.0,63707.0,0.078479]
[1727052901566,0.078476,63710.0,63704.0,0.078483]
[1727052901767,0.002,63705.0,63704.0,0.078484]
[1727052903366,0.002,63711.0,63706.0,0.07848]
[1727052903563,0.002,63711.0,63699.0,0.3608]
[1727052904069,0.07848,63707.0,63699.0,0.3608]
[1727052904284,0.001,63705.0,63699.0,0.3608]
[1727052904981,0.001,63705.0,63704.0,0.078484]
[1727052905274,0.080475,63711.0,63710.0,0.078476]
[1727052905275,0.001,63711.0,63710.0,0.078476]
[1727052905973,0.00235555,63718.0,63714.0,0.078471]
[1727052906178,0.00235555,63718.0,63717.0,0.078468]
[1727052906371,0.36315555,63718.0,63717.0,0.078468]
[1727052906881,0.63162155,63718.0,63717.0,0.078468]
[1727052907069,0.19235555,63718.0,63717.0,0.078468]
[1727052907571,0.3608,63718.0,63717.0,0.078468]
[1727052907971,0.004,63718.0,63717.0,0.66084]
[1727052908170,0.439251,63731.0,63727.0,0.078455]
[1727052908483,0.440131,63731.0,63727.0,0.078455]
[1727052908664,0.078452,63730.0,63727.0,0.078455]
[1727052908866,0.078453,63729.0,63727.0,0.078455]
[1727052909264,0.3608,63731.0,63713.0,0.1404]
[1727052909465,0.19,63724.0,63722.0,0.07846]
[1727052910180,0.19,63724.0,63712.0,0.3608]
[1727052910382,0.19,63715.0,63712.0,0.3608]
[1727052910879,0.19,63715.0,63714.0,0.078471]
[1727052911275,0.19,63715.0,63710.0,0.078476]
[1727052911470,0.19,63711.0,63710.0,0.078476]
[1727052912093,0.5508,63711.0,63710.0,0.078476]
[1727052913673,0.5538,63711.0,63705.0,0.078481]
[1727052914087,0.5508,63711.0,63705.0,0.078481]
[1727052914271,0.19,63706.0,63705.0,0.078481]
[1727052914774,0.19,63706.0,63705.0,0.001]
[1727052914973,0.19,63706.0,63693.0,0.00235502]
[1727052914974,0.078483,63705.0,63693.0,0.00235502]
[1727052915286,0.19,63694.0,63693.0,0.00235502]
[1727052915470,0.19,63694.0,63693.0,0.08085202]
[1727052915671,0.3608,63695.0,63693.0,0.00235502]
[1727052915881,0.19,63699.0,63693.0,0.00235502]
[1727052916077,0.19,63699.0,63698.0,0.078491]
[1727052916275,0.3608,63700.0,63699.0,0.07849]
[1727052917584,0.3608,63700.0,63699.0,0.07949]
[1727052918982,0.3618,63700.0,63699.0,0.07949]
[1727052919595,0.3608,63700.0,63699.0,0.07949]
[1727052919784,0.3618,63700.0,63699.0,0.07949]
[1727052920279,0.3618,63700.0,63699.0,0.001]
[1727052920480,0.5518,63700.0,63699.0,0.001]
[1727052920884,0.630289,63700.0,63699.0,0.001]
[1727052921197,0.629289,63700.0,63699.0,0.001]
[1727052921371,0.630289,63700.0,63699.0,0.001]
[1727052921776,0.078493,63697.0,63691.0,0.0785]
[1727052921977,0.3608,63693.0,63691.0,0.0785]
[1727052922376,0.3608,63693.0,63685.0,0.0771883]
[1727052922377,0.3608,63693.0,63688.0,0.078503]
[1727052922588,0.3608,63693.0,63679.0,0.1207]
[1727052922589,0.19,63689.0,63681.0,0.0771883]
[1727052922792,0.07851,63683.0,63677.0,0.0771883]
[1727052922979,0.19,63680.0,63673.0,0.0771883]
[1727052923177,0.19,63680.0,63671.0,0.0771883]
[1727052923395,0.19,63680.0,63672.0,0.07954411]
[1727052923590,0.19,63680.0,63677.0,0.078516]
[1727052923797,0.19,63680.0,63679.0,0.078514]
[1727052924185,0.19,63680.0,63672.0,0.00235581]
[1727052924186,0.19,63680.0,63677.0,0.003]
[1727052924382,0.3608,63678.0,63677.0,0.003]
[1727052924587,0.3608,63678.0,63676.0,0.078518]
[1727052924787,0.3608,63678.0,63672.0,0.06404548]
[1727052924788,0.3608,63678.0,63677.0,0.081517]
[1727052926208,0.001,63678.0,63677.0,0.081517]
[1727052926423,0.002,63678.0,63677.0,0.078517]
[1727052926906,0.001,63678.0,63677.0,0.078517]
[1727052927130,0.3628,63678.0,63677.0,0.081517]
[1727052927499,0.3628,63678.0,63677.0,0.003]
[1727052927904,0.441316,63678.0,63677.0,0.003]
[1727052928103,0.078521,63674.0,63669.0,0.078526]
[1727052928303,0.5508,63670.0,63669.0,0.078526]
[1727052930106,0.3618,63670.0,63665.0,0.078531]
[1727052930309,0.3618,63670.0,63668.0,0.078528]
[1727052930512,0.19,63669.0,63668.0,0.078528]
[1727052930712,0.3618,63670.0,63669.0,0.078527]
[1727052931007,0.5528,63670.0,63669.0,0.078527]
[1727052931421,0.3628,63670.0,63669.0,0.078527]
[1727052931709,0.5528,63670.0,63669.0,0.078527]
[1727052932408,0.192,63670.0,63669.0,0.078527]
[1727052932601,0.002,63670.0,63669.0,0.078527]
[1727052932805,0.3608,63678.0,63664.0,0.5508]
[1727052933104,0.19,63677.0,63675.0,0.078519]
[1727052933902,0.19,63677.0,63661.0,0.06168967]
[1727052934114,0.19,63663.0,63661.0,0.06168967]
[1727052934416,0.19,63663.0,63662.0,0.078535]
[1727052935406,0.19,63667.0,63666.0,0.07853]
[1727052936416,0.37931139,63671.0,63657.0,0.1292]
[1727052936417,0.37931139,63671.0,63670.0,0.078525]
[1727052936624,0.3608,63671.0,63670.0,0.078525]
[1727052937217,0.01913927,63677.0,63676.0,0.078518]
[1727052937417,0.3608,63697.0,63686.0,0.078506]
[1727052938122,0.1285,63706.0,63686.0,0.078506]
[1727052938123,0.1285,63706.0,63687.0,0.078504]
[1727052938320,0.00235577,63707.0,63705.0,0.078482]
[1727052938508,0.02085408,63707.0,63705.0,0.078482]
[1727052938809,0.19,63715.0,63700.0,0.3608]
[1727052939013,0.19,63715.0,63701.0,0.1207]
[1727052939619,0.001,63706.0,63701.0,0.1207]
[1727052940417,0.001,63706.0,63705.0,0.078482]
[1727052940924,0.001,63706.0,63701.0,0.079487]
[1727052941214,0.19,63702.0,63701.0,0.079487]
[1727052941415,0.5508,63702.0,63701.0,0.001]
[1727052941913,0.629286,63702.0,63701.0,0.001]
[1727052942323,1.62176,63702.0,63687.0,0.078503]
[1727052942620,0.19,63690.0,63689.0,0.078502]
[1727052943003,0.19,63696.0,63682.0,0.21068967]
[1727052943208,0.19,63696.0,63694.0,0.078495]
[1727052944414,0.193,63696.0,63694.0,0.078495]
[1727052945504,0.193,63696.0,63695.0,0.078495]
[1727052945705,0.003,63696.0,63695.0,0.078495]
[1727052945921,0.005,63696.0,63688.0,0.06168967]
[1727052946206,0.005,63696.0,63687.0,0.3608]
[1727052946207,0.005,63696.0,63695.0,0.439295]
[1727052947120,0.01896239,63705.0,63700.0,0.078488]
[1727052947311,0.19,63707.0,63695.0,0.3608]
[1727052948320,0.19,63707.0,63704.0,0.078483]
[1727052949616,0.204,63707.0,63704.0,0.079483]
[1727052950419,0.204,63707.0,63704.0,0.001]
[1727052951119,0.28248,63707.0,63704.0,0.001]
[1727052951511,0.204,63707.0,63704.0,0.001]
[1727052951713,0.078481,63706.0,63704.0,0.001]
[1727052951923,0.023,63707.0,63706.0,0.078481]
[1727052953027,0.014,63707.0,63706.0,0.078481]
[1727052953330,0.3608,63708.0,63707.0,0.07848]
[1727052955524,0.3738,63708.0,63707.0,0.07848]
[1727052955740,0.3878,63708.0,63707.0,0.07948]
[1727052956041,0.027,63708.0,63707.0,0.07948]
[1727052959122,0.027,63708.0,63707.0,0.001]
[1727052959123,0.105479,63708.0,63707.0,0.001]
[1727052959622,0.12410779,63708.0,63707.0,0.001]
[1727052959818,0.12410779,63708.0,63695.0,0.3608]
[1727052959819,1.11654879,63708.0,63699.0,0.078489]
[1727052960023,0.3608,63701.0,63699.0,0.078489]
[1727052960237,0.439285,63703.0,63698.0,0.07849]
[1727052960541,0.439285,63703.0,63699.0,0.07849]
[1727052960734,0.439285,63703.0,63695.0,0.078494]
[1727052960735,0.078488,63701.0,63695.0,0.078494]
[1727052960922,0.3608,63703.0,63695.0,0.078494]
[1727052960923,0.19,63696.0,63695.0,0.078494]
[1727052961121,0.19,63696.0,63682.0,0.3608]
[1727052961122,0.19,63696.0,63684.0,0.078507]
[1727052961333,0.3608,63697.0,63684.0,0.078507]
[1727052961334,0.3608,63691.0,63684.0,0.078507]
[1727052961534,0.3608,63691.0,63678.0,0.3608]
[1727052961750,0.4393,63691.0,63685.0,0.078506]
[1727052962031,0.37905154,63691.0,63690.0,0.078501]
[1727052962737,0.37905154,63691.0,63676.0,0.14020667]
[1727052962738,0.078507,63686.0,63676.0,0.078517]
[1727052962927,1.64009154,63691.0,63676.0,0.078517]
[1727052962928,0.19,63681.0,63676.0,0.078517]
[1727052963622,0.19,63681.0,63671.0,0.3608]
[1727052963933,0.3608,63683.0,63671.0,0.3608]
[1727052964322,0.3608,63683.0,63671.0,0.42248967]
[1727052964523,0.3608,63683.0,63682.0,0.078511]
[1727052965030,0.37905154,63691.0,63686.0,0.078506]
[1727052966930,0.01825154,63691.0,63686.0,0.078506]
[1727052967132,0.01825154,63691.0,63690.0,0.078501]
[1727052967133,0.3608,63691.0,63690.0,0.078501]
[1727052967333,0.00235638,63699.0,63693.0,0.078497]
[1727052967534,0.00235638,63699.0,63695.0,0.078494]
[1727052968541,0.00235638,63699.0,63689.0,0.04632369]
[1727052968731,0.00235638,63699.0,63684.0,0.1278]
[1727052968732,0.00235638,63699.0,63690.0,0.04632369]
[1727052968934,0.00235638,63699.0,63691.0,0.04632369]
[1727052969735,0.00235638,63699.0,63690.0,0.04632369]
[1727052969938,0.00235638,63699.0,63695.0,0.078494]
[1727052970136,0.00235638,63699.0,63691.0,0.04632369]
[1727052970137,0.19,63696.0,63691.0,0.04632369]
[1727052970337,0.3608,63693.0,63682.0,0.04631445]
[1727052970543,0.3608,63686.0,63679.0,0.04631445]
[1727052970739,0.3608,63686.0,63678.0,0.04631445]
[1727052971140,0.3608,63686.0,63682.0,0.078511]
[1727052971443,0.3608,63686.0,63680.0,0.04631445]
[1727052971646,0.3608,63686.0,63681.0,0.04631445]
[1727052972042,0.3608,63686.0,63680.0,0.04631445]
[1727052972541,0.3608,63686.0,63677.0,0.42248967]
[1727052972542,0.3608,63686.0,63681.0,0.04631445]
[1727052972743,0.3608,63686.0,63685.0,0.078507]
[1727052973447,0.3608,63686.0,63679.0,0.04631445]
[1727052973639,0.3608,63686.0,63678.0,0.04631445]
[1727052973942,0.19,63681.0,63680.0,0.04631445]
[1727052974144,0.19,63681.0,63675.0,0.04631445]
[1727052974353,0.37934581,63686.0,63674.0,0.07852]
[1727052974354,0.19,63676.0,63674.0,0.07852]
[1727052974535,0.19,63676.0,63667.0,0.04631445]
[1727052974732,0.3608,63669.0,63661.0,0.078536]
[1727052974934,0.3608,63662.0,63661.0,0.078537]
[1727052975634,0.19,63665.0,63654.0,0.04631445]
[1727052975836,0.19,63665.0,63652.0,0.4846]
[1727052975837,0.19,63665.0,63656.0,0.04631445]
[1727052976137,0.19,63665.0,63652.0,0.54628967]
[1727052976138,0.19,63665.0,63663.0,0.078533]
[1727052977041,0.19,63665.0,63658.0,0.07854]
[1727052977042,0.01872383,63665.0,63658.0,0.07854]
[1727052977246,0.078542,63657.0,63649.0,0.04631445]
[1727052977548,0.078542,63657.0,63641.0,0.0771883]
[1727052977549,0.19,63650.0,63639.0,0.37311445]
[1727052977741,0.3608,63646.0,63634.0,0.04631445]
[1727052977944,0.5508,63635.0,63626.0,0.04631445]
[1727052978251,0.3608,63633.0,63625.0,0.3608]
[1727052978640,0.3608,63633.0,63631.0,0.078573]
[1727052978840,0.3608,63633.0,63625.0,0.3608]
[1727052979048,0.19,63632.0,63628.0,0.078577]
[1727052980050,0.19,63632.0,63629.0,0.078576]
[1727052980745,0.3608,63630.0,63615.0,0.04631445]
[1727052981049,0.5508,63630.0,63616.0,0.3608]
[1727052981253,0.19,63630.0,63616.0,0.3608]
[1727052981550,0.19,63630.0,63623.0,0.078583]
[1727052981750,0.5508,63630.0,63623.0,0.078583]
[1727052982053,0.5508,63630.0,63611.0,0.4537]
[1727052982054,0.19,63630.0,63614.0,0.3608]
[1727052982350,0.1242,63632.0,63620.0,0.3608]
[1727052982743,0.1242,63632.0,63614.0,0.3608]
[1727052983051,0.3608,63636.0,63631.0,0.078573]
[1727052983444,0.3608,63636.0,63629.0,0.078576]
[1727052983650,0.3608,63636.0,63620.0,0.3608]
[1727052983844,0.19,63635.0,63620.0,0.3608]
[1727052984047,0.19,63635.0,63620.0,0.37977495]
[1727052984358,0.19,63635.0,63630.0,0.078574]
[1727052984551,0.19,63635.0,63613.0,0.0079]
[1727052984851,0.19,63626.0,63622.0,0.078584]
[1727052986358,0.19,63626.0,63625.0,0.078581]
[1727052987654,0.37958448,63629.0,63625.0,0.078581]
[1727052987655,0.3608,63636.0,63625.0,0.3608]
[1727052988347,0.3608,63636.0,63635.0,0.078569]
[1727052989452,0.3608,63636.0,63630.0,0.078575]
[1727052989652,0.3608,63636.0,63631.0,0.078574]
[1727052989852,0.3608,63636.0,63632.0,0.078572]
[1727052990359,0.37975275,63643.0,63626.0,0.078579]
[1727052990544,0.37975275,63643.0,63640.0,0.078562]
[1727052990945,0.3608,63643.0,63627.0,0.078578]
[1727052991145,0.3608,63643.0,63640.0,0.078562]
[1727052991747,0.3608,63643.0,63642.0,0.07856]
[1727052991953,0.3608,63643.0,63632.0,0.3608]
[1727052991954,0.44015,63650.0,63645.0,0.078556]
[1727052992455,0.19,63647.0,63632.0,0.3608]
[1727052992649,0.3608,63644.0,63632.0,0.3608]
[1727052992855,0.3608,63644.0,63642.0,0.07856]
[1727052993044,0.00235819,63648.0,63647.0,0.078554]
[1727052993648,1.62451819,63648.0,63628.0,0.0079]
[1727052993852,0.3608,63632.0,63631.0,0.078574]
[1727052994356,0.3608,63632.0,63626.0,0.48276]
[1727052994357,0.3608,63632.0,63629.0,0.078575]
[1727052994750,0.3608,63632.0,63620.0,0.47506]
[1727052994968,0.3608,63632.0,63631.0,0.078574]
[1727052996864,0.078574,63631.0,63623.0,0.078582]
[1727052997065,0.19,63624.0,63623.0,0.078582]
[1727052998165,0.3608,63625.0,63624.0,0.078582]
[1727052998867,0.3608,63632.0,63629.0,0.078575]
[1727052999059,0.3608,63632.0,63616.0,0.19]
[1727052999373,0.3608,63632.0,63631.0,0.078574]
[1727053000063,0.3608,63632.0,63629.0,0.078576]
[1727053000258,0.3608,63632.0,63626.0,0.3608]
[1727053000459,0.078576,63629.0,63626.0,0.3608]
[1727053000861,0.3608,63632.0,63626.0,0.3608]
[1727053001657,0.3608,63632.0,63631.0,0.078574]
[1727053002368,0.5508,63632.0,63631.0,0.078574]
[1727053002555,0.5508,63632.0,63616.0,0.09747194]
[1727053002556,0.078579,63627.0,63616.0,0.078591]
[1727053002752,0.3608,63624.0,63616.0,0.078591]
[1727053003362,0.3608,63632.0,63621.0,0.078586]
[1727053003564,0.078569,63635.0,63629.0,0.06187323]
[1727053003765,0.078569,63635.0,63633.0,0.0464545]
[1727053004256,0.09723894,63635.0,63632.0,0.1250265]
[1727053004460,0.09723894,63635.0,63633.0,0.06187323]
[1727053004661,0.09723894,63635.0,63634.0,0.06187323]
[1727053005572,0.09723894,63635.0,63632.0,0.078572]
[1727053006068,0.3608,63637.0,63636.0,0.078567]
[1727053006271,0.3608,63637.0,63636.0,0.18463513]
[1727053007066,0.3608,63637.0,63636.0,1.38234868]
[1727053007261,0.3608,63637.0,63636.0,0.31090868]
[1727053007666,0.19,63644.0,63643.0,0.078559]
[1727053007976,0.5508,63644.0,63643.0,0.18462713]
[1727053008569,1.1508,63644.0,63637.0,0.09316649]
[1727053008772,1.1508,63644.0,63641.0,0.06211234]
[1727053008773,0.07856,63642.0,63641.0,0.06211234]
[1727053008972,0.078561,63641.0,63640.0,0.06211234]
[1727053009167,0.078563,63640.0,63639.0,0.06211234]
[1727053009368,0.078564,63639.0,63638.0,0.06211234]
[1727053010274,0.078564,63639.0,63637.0,0.06211234]
[1727053010469,0.5508,63638.0,63637.0,0.06211234]
[1727053011277,0.5508,63638.0,63630.0,0.09316649]
[1727053011473,0.1486,63637.0,63629.0,0.09316649]
[1727053012375,0.03925589,63636.0,63632.0,0.078572]
[1727053013975,0.55172,63638.0,63637.0,0.078566]
[1727053013976,0.36172,63638.0,63637.0,0.078566]
[1727053014682,0.3608,63638.0,63637.0,0.078566]
[1727053016384,0.0182862,63646.0,63636.0,0.09316649]
[1727053016675,0.0182862,63646.0,63634.0,0.2667]
[1727053016676,0.078554,63647.0,63638.0,0.09316649]
[1727053016868,0.078554,63647.0,63645.0,0.06208564]
[1727053017274,0.078554,63647.0,63646.0,0.14064064]
[1727053017474,0.3079,63648.0,63646.0,0.14064064]
[1727053017677,0.3608,63649.0,63647.0,0.06208564]
[1727053017870,0.19,63654.0,63649.0,0.078551]
[1727053018067,0.19,63654.0,63650.0,0.1251099]
[1727053018377,0.19,63654.0,63639.0,0.3608]
[1727053018378,0.13999651,63651.0,63639.0,0.3608]
[1727053018584,0.13999651,63651.0,63646.0,0.078555]